bitfinex/quotes_ETHUSD_20240827
["timestamp","ask_amount","ask_price","bid_price","bid_amount"]
[1724770415686,3.84854,2598.4,2596.8,4.47788331]
[1724770415982,3.84873,2598.3,2596.9,3.0]
[1724770416186,0.769727,2598.2,2597.0,0.62700328]
[1724770416419,0.769727,2598.2,2597.0,0.07700328]
[1724770416636,0.769727,2598.2,2597.1,0.55]
[1724770416786,0.4618457,2598.1,2597.1,0.55]
[1724770417289,7.1044,2598.0,2597.1,0.55]
[1724770418649,10.95362,2598.0,2596.3,14.96415]
[1724770418826,7.3922,2597.6,2596.4,3.0]
[1724770419639,7.3922,2597.6,2595.9,7.6659]
[1724770419640,3.84998,2597.5,2595.9,7.6659]
[1724770419850,3.84998,2597.5,2595.5,11.31859]
[1724770419851,3.85057,2597.1,2595.5,11.31859]
[1724770420141,7.45,2596.8,2595.5,7.4659]
[1724770420513,7.45,2596.8,2595.5,11.31861]
[1724770420723,7.45,2596.8,2595.6,0.07704029]
[1724770420953,7.45,2596.8,2595.6,3.85255]
[1724770421113,0.745,2596.7,2595.5,7.4659]
[1724770421626,0.745,2596.7,2595.6,3.92963026]
[1724770421850,0.745,2596.7,2595.7,3.0]
[1724770422067,0.745,2596.7,2595.7,6.8525]
[1724770422359,0.8195,2596.6,2595.7,3.07704022]
[1724770422510,0.8195,2596.6,2595.8,0.55]
[1724770424145,0.8195,2596.6,2595.7,0.55]
[1724770425158,0.8195,2596.6,2595.6,0.55]
[1724770425455,0.8195,2596.6,2595.6,4.47968328]
[1724770425660,0.8195,2596.6,2595.7,3.0]
[1724770425834,0.8195,2596.6,2595.8,0.55]
[1724770426032,0.8195,2596.6,2595.8,0.62704328]
[1724770426241,0.8195,2596.6,2595.8,5.22735161]
[1724770426565,0.8195,2596.6,2595.8,9.07964161]
[1724770426744,0.8195,2596.6,2595.8,5.22730161]
[1724770427661,0.8195,2596.6,2595.8,1.37501161]
[1724770427844,0.8195,2596.6,2595.9,3.85221]
[1724770428053,0.8195,2596.6,2596.0,0.62703286]
[1724770428254,0.8195,2596.6,2593.7,0.80663716]
[1724770428255,3.85353,2595.1,2593.7,0.80663716]
[1724770428423,7.2834,2594.9,2593.8,0.0771001]
[1724770428763,0.07703286,2594.8,2593.3,11.08734421]
[1724770428969,0.81307615,2594.8,2593.4,1.14887727]
[1724770429129,0.07703286,2594.7,2593.4,1.14887727]
[1724770430240,1.19854715,2594.1,2592.8,1.094461]
[1724770430557,1.19854715,2594.1,2592.7,3.85697]
[1724770431434,1.19854715,2594.1,2592.8,3.0]
[1724770432962,7.7117,2594.0,2592.8,3.0]
[1724770433127,0.96805758,2593.9,2592.9,0.685689]
[1724770433463,8.41805758,2593.9,2593.0,0.55]
[1724770434329,8.41805758,2593.9,2593.0,0.62712229]
[1724770434640,7.52703286,2593.9,2593.1,3.85629]
[1724770434837,7.52703286,2593.9,2593.3,3.85607]
[1724770434838,7.45,2593.9,2593.3,3.85607]
[1724770435039,7.45,2593.9,2593.4,3.62710914]
[1724770435828,7.45,2593.9,2593.4,0.62710914]
[1724770437479,7.7117,2594.0,2593.4,0.62710914]
[1724770437835,7.7117,2594.0,2593.5,3.85571]
[1724770438038,7.7117,2594.0,2593.6,3.55]
[1724770438233,0.07703286,2593.9,2593.6,3.55]
[1724770438462,0.07703286,2593.9,2593.6,0.55]
[1724770439176,7.58913286,2593.9,2593.6,0.55]
[1724770440284,0.07703286,2593.9,2593.6,0.55]
[1724770440639,0.07703286,2593.9,2593.4,0.55]
[1724770440833,7.7117,2594.0,2593.4,5.23130515]
[1724770441030,7.7117,2594.0,2593.5,3.0]
[1724770441279,7.7117,2594.0,2593.4,1.2983332]
[1724770441280,0.07703286,2593.9,2593.6,0.55]
[1724770441431,0.84820286,2593.9,2593.4,0.55]
[1724770441770,0.84820286,2593.9,2593.3,0.55]
[1724770442783,0.07703286,2593.9,2593.3,0.55]
[1724770442937,7.7117,2594.0,2593.4,0.07710941]
[1724770443271,7.7117,2594.0,2593.5,0.55]
[1724770443871,7.7117,2594.0,2593.4,0.55]
[1724770444078,0.07703286,2593.9,2593.4,0.55]
[1724770444381,7.7117,2594.0,2593.5,0.07710677]
[1724770444594,0.07703286,2593.9,2593.6,0.55]
[1724770444881,0.07703286,2593.9,2593.4,0.55]
[1724770444882,0.85590615,2593.9,2593.4,0.55]
[1724770445092,0.85590615,2593.9,2593.1,3.0]
[1724770445093,7.0491,2593.8,2593.1,3.0]
[1724770445389,0.07703286,2593.7,2592.9,3.0]
[1724770446159,0.07703286,2593.7,2592.8,3.85673]
[1724770446490,0.07703286,2593.7,2592.9,3.55]
[1724770446645,1.62032221,2593.7,2592.9,3.55]
[1724770447761,1.62032221,2593.7,2592.9,0.55]
[1724770447960,1.62032221,2593.7,2592.8,0.55]
[1724770448151,1.62032221,2593.7,2592.5,10.78627]
[1724770448350,1.69761828,2593.6,2592.3,3.85745]
[1724770448549,1.69761828,2593.6,2592.5,3.85727]
[1724770448550,7.52703286,2593.5,2592.5,3.85727]
[1724770448789,7.52703286,2593.5,2592.5,0.771472]
[1724770448790,1.69363511,2593.4,2592.5,0.771472]
[1724770449097,6.94943286,2593.3,2592.3,3.85745]
[1724770449398,0.07703286,2593.2,2592.1,3.85782]
[1724770449586,0.07703286,2593.2,2592.0,3.85794]
[1724770449587,0.94133966,2593.2,2592.0,3.85794]
[1724770449885,7.7117,2593.1,2592.1,3.60784]
[1724770450190,0.94233683,2593.0,2592.1,4.35443]
[1724770450702,0.94233683,2593.0,2592.1,3.60784]
[1724770451558,0.94233683,2593.0,2592.2,3.55]
[1724770456091,0.94233683,2593.0,2592.2,0.55]
[1724770457726,7.1196,2592.9,2592.0,3.0]
[1724770457892,0.07703286,2592.8,2591.9,3.0]
[1724770458094,0.07703286,2592.8,2591.9,0.60374135]
[1724770458305,1.04426691,2592.8,2592.0,0.60374135]
[1724770458539,0.07703286,2592.7,2591.8,0.68089201]
[1724770458754,0.07703286,2592.7,2591.9,1.17341526]
[1724770458938,0.07703286,2592.7,2592.0,0.60374135]
[1724770459145,0.07703286,2592.7,2592.1,0.07714787]
[1724770459719,0.07703286,2592.7,2592.2,0.55]
[1724770460043,1.05445992,2592.7,2592.2,0.55]
[1724770460211,0.07703286,2592.6,2592.2,0.55]
[1724770460723,8.73000368,2592.9,2592.3,0.07714704]
[1724770460918,8.73000368,2592.9,2592.2,0.55]
[1724770460919,7.1196,2592.9,2592.4,0.55]
[1724770461327,7.1196,2592.9,2592.2,0.55]
[1724770461945,0.07703286,2592.8,2592.2,0.55]
[1724770462133,7.19663286,2592.9,2592.2,0.55]
[1724770462946,7.19663286,2592.9,2592.1,0.55]
[1724770463147,1.10532029,2592.8,2592.1,0.55]
[1724770463380,0.07703286,2592.7,2591.9,1.15376212]
[1724770463589,0.71493505,2592.7,2591.9,0.55]
[1724770463875,0.71493505,2592.7,2591.8,0.55]
[1724770464032,0.56770953,2592.6,2591.8,0.60378512]
[1724770464234,7.19,2592.4,2591.9,0.55]
[1724770464475,0.07703286,2592.3,2591.7,4.93628249]
[1724770464784,0.07703286,2592.3,2591.7,0.55]
[1724770464968,0.07703286,2592.3,2591.7,1.15381679]
[1724770465336,0.07703286,2592.3,2591.7,0.55]
[1724770465635,0.07703286,2592.3,2591.7,0.75254359]
[1724770465836,0.07703286,2592.3,2591.8,0.55]
[1724770466055,7.19,2592.4,2591.9,0.07715439]
[1724770466271,7.19,2592.4,2592.0,0.55]
[1724770467038,0.07703286,2592.5,2592.0,0.55]
[1724770467457,0.07703286,2592.6,2592.0,0.55]
[1724770467634,1.50633286,2592.6,2591.8,0.55]
[1724770467831,14.293,2592.7,2591.9,0.07715445]
[1724770468036,14.293,2592.7,2592.0,0.55]
[1724770468281,14.293,2592.7,2592.1,0.07714605]
[1724770468600,14.293,2592.7,2592.2,0.55]
[1724770470112,6.843,2592.7,2592.2,0.55]
[1724770470472,0.07703286,2592.6,2592.0,0.55]
[1724770470674,0.07703286,2592.6,2591.9,0.55]
[1724770470890,0.07703286,2592.6,2591.8,0.55]
[1724770471065,0.07703286,2592.6,2591.6,0.55]
[1724770471399,1.22316615,2592.6,2591.7,0.355]
[1724770471567,1.22316615,2592.6,2591.8,0.55]
[1724770472305,14.5983,2592.5,2591.8,0.55]
[1724770472605,0.07703286,2592.4,2591.8,0.55]
[1724770472812,1.65917947,2592.4,2591.8,0.55]
[1724770473675,1.65917947,2592.4,2591.6,0.55]
[1724770474507,7.7117,2592.5,2591.7,4.74215748]
[1724770474702,7.7117,2592.5,2591.9,0.80663716]
[1724770475066,7.7117,2592.5,2592.0,1.15376954]
[1724770475397,7.7117,2592.5,2592.1,0.60376954]
[1724770475611,7.7117,2592.5,2592.2,0.55]
[1724770475612,0.07703286,2592.4,2592.2,0.55]
[1724770475978,0.07703286,2592.4,2592.0,0.55]
[1724770476278,0.07703286,2592.4,2591.8,3.80663716]
[1724770476279,0.07703286,2592.4,2592.1,0.60380768]
[1724770476474,0.07703286,2592.4,2592.2,0.55]
[1724770476774,7.3453,2592.3,2591.7,3.0]
[1724770476977,0.07703286,2592.2,2591.8,1.15383794]
[1724770477293,0.07703286,2592.2,2591.8,0.55]
[1724770477609,0.07703286,2592.2,2591.7,0.55]
[1724770477806,1.08812211,2592.2,2591.8,0.60387619]
[1724770478007,1.08812211,2592.2,2591.9,0.55]
[1724770478524,1.08812211,2592.2,2591.7,0.55]
[1724770478704,1.08812211,2592.2,2591.8,0.60387222]
[1724770478874,0.07703286,2592.2,2591.9,0.55]
[1724770479078,0.07703286,2592.2,2591.6,0.55]
[1724770479312,0.07703286,2592.2,2591.7,0.60385127]
[1724770479516,0.07703286,2592.2,2591.8,1.15385127]
[1724770479817,0.07703286,2592.2,2591.8,0.55]
[1724770479974,0.07703286,2592.2,2591.7,0.55]
[1724770480180,0.07703286,2592.2,2591.8,0.60386168]
[1724770480380,0.07703286,2592.2,2591.9,0.55]
[1724770480690,0.07703286,2592.2,2591.6,0.55]
[1724770480903,0.07703286,2592.2,2591.6,1.75211691]
[1724770481433,0.07703286,2592.2,2591.7,0.60384561]
[1724770481589,0.07703286,2592.2,2591.8,1.15384561]
[1724770481789,0.07703286,2592.2,2591.7,3.0]
[1724770482049,0.07703286,2592.2,2591.8,0.55]
[1724770482401,0.07703286,2592.2,2591.7,0.55]
[1724770483196,0.07703286,2592.2,2591.5,1.51618342]
[1724770483402,0.07703286,2592.2,2591.6,0.60386205]
[1724770483703,0.07703286,2592.2,2591.7,1.15386205]
[1724770483931,0.07703286,2592.2,2591.5,0.55]
[1724770484245,7.7117,2592.5,2591.6,8.09460977]
[1724770484455,7.7117,2592.5,2591.7,4.80032898]
[1724770485051,7.7117,2592.5,2591.8,0.07714801]
[1724770485199,7.7117,2592.5,2591.9,0.55]
[1724770485557,7.7117,2592.5,2592.0,0.07714289]
[1724770485733,7.7117,2592.5,2592.1,0.55]
[1724770486163,7.7117,2592.5,2592.2,0.07714291]
[1724770486465,7.7117,2592.5,2592.3,0.55]
[1724770487052,7.7117,2592.5,2592.3,1.64433429]
[1724770488325,7.7117,2592.5,2592.3,0.55]
[1724770491272,0.09643767,2592.4,2591.6,3.0]
[1724770491566,7.56303767,2592.4,2591.7,0.55]
[1724770492069,8.6611862,2592.4,2591.7,0.55]
[1724770492722,8.6611862,2592.4,2591.5,0.55]
[1724770492926,7.56303767,2592.4,2591.5,1.35663716]
[1724770493149,7.56303767,2592.4,2591.5,5.21537716]
[1724770493421,7.56303767,2592.4,2591.6,3.0]
[1724770493632,7.56303767,2592.4,2591.7,1.37153772]
[1724770494620,7.7117,2592.5,2591.8,0.07715562]
[1724770494821,7.7117,2592.5,2591.9,0.55]
[1724770495026,7.7117,2592.5,2592.0,0.07714672]
[1724770495236,7.7117,2592.5,2592.1,0.55]
[1724770496486,7.7117,2592.5,2592.2,0.07714679]
[1724770496832,7.7117,2592.5,2592.3,0.55]
[1724770497000,7.7117,2592.5,2592.1,0.55]
[1724770497535,7.7117,2592.5,2592.2,0.0771468]
[1724770497712,7.7117,2592.5,2592.3,0.55]
[1724770500554,7.7117,2592.5,2592.3,3.55]
[1724770500997,7.7117,2592.5,2592.3,0.55]
[1724770501350,7.7117,2592.5,2592.1,0.55]
[1724770501550,7.7117,2592.5,2592.0,0.55]
[1724770502790,6.9417,2592.3,2591.9,3.0]
[1724770502997,6.9417,2592.3,2591.5,0.40143225]
[1724770502998,0.09645228,2592.2,2591.5,0.80663716]
[1724770503236,0.96167484,2592.2,2591.4,0.80663716]
[1724770504041,0.96167484,2592.2,2591.4,0.92234598]
[1724770504333,7.4293,2592.1,2591.3,3.0]
[1724770504543,0.096465,2592.0,2591.2,0.80663716]
[1724770505037,7.7117,2592.5,2591.4,6.9508]
[1724770505213,7.4293,2592.3,2591.5,3.88380195]
[1724770505394,0.09645602,2592.2,2591.5,3.88380195]
[1724770506022,0.09645602,2592.2,2591.4,0.80663716]
[1724770506223,0.09645602,2592.2,2591.3,4.4115968]
[1724770506224,0.09645602,2592.2,2591.5,0.55]
[1724770506413,0.09645602,2592.2,2591.4,0.55]
[1724770506609,1.00044162,2592.2,2591.4,0.55]
[1724770506842,1.00044162,2592.2,2591.2,3.92468412]
[1724770506843,7.4015,2592.1,2591.2,3.11804696]
[1724770507025,0.09646993,2592.0,2591.2,0.11804696]
[1724770507336,0.09646993,2592.0,2591.0,0.80663716]
[1724770507337,0.93666409,2592.0,2591.0,0.80663716]
[1724770507537,0.83381641,2591.9,2591.0,2.66754123]
[1724770507741,0.09646995,2591.8,2591.0,2.66754123]
[1724770508099,0.09646995,2591.8,2591.0,2.78180762]
[1724770508298,7.589,2591.7,2591.0,0.11426639]
[1724770508504,7.589,2591.7,2591.2,3.8592]
[1724770508748,7.589,2591.7,2591.1,3.93654075]
[1724770508946,7.589,2591.7,2591.1,0.7643035]
[1724770509505,7.589,2591.7,2591.2,0.55]
[1724770509709,6.9373,2592.1,2591.3,0.077173]
[1724770510033,0.0964652,2592.0,2591.4,0.55]
[1724770510841,0.09646512,2592.4,2591.5,7.0363721]
[1724770511055,0.09646512,2592.4,2591.6,3.55]
[1724770511405,0.09646512,2592.4,2591.7,3.0]
[1724770511602,0.09646512,2592.4,2591.8,0.55]
[1724770511804,0.09646512,2592.4,2591.6,0.55]
[1724770511805,7.1012,2592.3,2591.6,0.55]
[1724770512005,0.09645627,2592.2,2591.6,0.55]
[1724770512457,7.19765626,2592.3,2591.7,0.07716501]
[1724770512612,7.7117,2592.5,2591.8,4.40821]
[1724770512807,7.7117,2592.5,2591.9,0.07715099]
[1724770513008,7.7117,2592.5,2592.0,0.55]
[1724770514259,0.09643575,2592.4,2592.0,0.55]
[1724770514473,0.09643575,2592.4,2591.9,0.55]
[1724770515718,0.09643575,2592.4,2591.9,0.62715508]
[1724770515923,0.09643575,2592.4,2591.9,2.11567464]
[1724770516325,7.7117,2592.5,2591.9,5.97377464]
[1724770516526,7.7117,2592.5,2592.0,3.0]
[1724770516758,7.7117,2592.5,2592.1,0.62714846]
[1724770516949,7.7117,2592.5,2592.2,0.55]
[1724770519129,7.7117,2592.5,2592.3,0.07714557]
[1724770519479,7.7117,2592.5,2592.4,0.55]
[1724770519709,7.7117,2592.5,2592.4,4.48456111]
[1724770519982,7.7117,2592.5,2592.4,13.18800822]
[1724770520282,3.85484,2594.2,2592.4,13.18800822]
[1724770520283,6.9805,2593.8,2592.5,11.19889]
[1724770520589,12.48,2594.2,2592.9,3.85659]
[1724770520864,12.48,2594.2,2593.5,7.4191]
[1724770521075,7.45,2594.3,2593.6,3.62710261]
[1724770521229,8.95471,2594.3,2593.6,3.62710261]
[1724770521726,7.45,2594.3,2593.6,7.48263261]
[1724770521927,7.45,2594.3,2593.9,3.85519]
[1724770522177,7.45,2594.3,2594.0,3.62708913]
[1724770522632,7.45,2594.3,2594.0,14.87712913]
[1724770522832,7.45,2594.3,2594.0,12.50980204]
[1724770523380,27.0971,2595.0,2594.0,16.36476204]
[1724770523381,15.0471,2595.0,2594.0,16.36476204]
[1724770523526,0.09635385,2594.9,2594.0,16.36476204]
[1724770523729,7.454,2595.8,2594.5,3.85427]
[1724770524041,7.454,2595.8,2594.6,3.55]
[1724770524042,0.09633614,2595.7,2594.6,3.55]
[1724770526274,1.29263777,2595.5,2594.4,0.55]
[1724770527143,5.14546777,2595.5,2594.4,0.55]
[1724770527345,1.62569478,2595.4,2594.4,0.55]
[1724770527658,0.09635279,2595.3,2594.4,0.55]
[1724770527839,0.0963527,2595.2,2594.4,0.55]
[1724770528041,0.0963527,2595.3,2594.4,0.62705973]
[1724770528241,0.0963527,2595.3,2594.5,4.60242497]
[1724770528457,0.0963527,2595.3,2594.6,0.62704177]
[1724770529346,0.09634277,2595.5,2594.6,0.62704177]
[1724770529551,0.09634277,2595.5,2594.7,0.52294967]
[1724770529774,0.09634277,2595.5,2594.8,0.62702041]
[1724770529933,0.09634277,2595.5,2594.8,3.62702041]
[1724770530274,7.45,2595.7,2594.9,3.85357]
[1724770530481,0.09632389,2595.6,2595.0,5.00702904]
[1724770530634,0.09632389,2595.6,2595.0,0.55]
[1724770531392,0.09632389,2595.6,2594.6,6.85414]
[1724770531393,0.09632389,2595.6,2594.6,3.0]
[1724770531700,11.44691,2595.5,2594.0,7.1185]
[1724770531907,11.30312,2595.3,2594.0,7.1185]
[1724770532185,7.47066339,2595.2,2593.6,7.5538]
[1724770532397,3.85351,2595.1,2593.7,3.85549]
[1724770532546,0.09636834,2595.0,2593.8,0.07709467]
[1724770532888,0.09636834,2595.0,2594.0,3.85504]
[1724770533098,0.09636834,2595.0,2594.2,3.85467]
[1724770533300,0.09636834,2595.0,2594.3,0.07705597]
[1724770533515,0.09636834,2595.0,2594.3,3.0]
[1724770533651,0.09636834,2595.0,2594.4,0.55]
[1724770534093,3.95000834,2595.0,2593.7,0.75538]
[1724770534390,7.1321,2594.9,2593.7,0.75538]
[1724770534600,0.09637023,2594.8,2593.7,0.75538]
[1724770534766,0.81921725,2594.8,2593.8,1.602024]
[1724770534953,0.81921725,2594.8,2593.8,4.602024]
[1724770535385,0.81921725,2594.8,2593.9,3.0]
[1724770535649,0.81921725,2594.8,2593.8,1.602024]
[1724770535999,0.81921725,2594.8,2592.7,4.25892012]
[1724770536000,7.2035,2594.6,2593.3,7.5274]
[1724770536204,0.09638694,2594.5,2593.0,15.62687]
[1724770536498,7.2035,2594.4,2593.1,3.85627]
[1724770536798,0.09639092,2594.3,2593.2,1.948314]
[1724770536954,0.09639121,2594.2,2593.2,5.804544]
[1724770537150,0.09639121,2594.2,2593.3,0.65756802]
[1724770537467,0.09639121,2594.2,2593.2,3.85616]
[1724770537777,0.09639121,2594.2,2593.3,3.0]
[1724770538097,0.09638059,2594.3,2593.4,0.07710447]
[1724770538391,0.09638059,2594.3,2593.4,1.15603192]
[1724770538603,0.09638059,2594.3,2593.5,0.55]
[1724770539226,14.9726,2594.6,2593.8,3.8553]
[1724770539514,14.9726,2594.6,2593.9,3.82203536]
[1724770539515,0.09636795,2594.5,2593.9,3.82203536]
[1724770539673,0.09636795,2594.5,2593.9,0.62709436]
[1724770540169,0.09636795,2594.5,2593.9,3.62709436]
[1724770540375,0.09636795,2594.5,2593.9,3.55]
[1724770540683,0.09636795,2594.5,2593.9,0.55]
[1724770540684,1.60326474,2594.5,2593.9,0.55]
[1724770541006,7.1194,2594.4,2593.3,3.0]
[1724770541191,0.09638689,2594.3,2593.3,0.0771086]
[1724770541397,0.09638689,2594.3,2593.3,3.0771086]
[1724770541565,0.81796558,2594.3,2593.4,0.69333386]
[1724770541773,0.81796558,2594.3,2593.3,3.0]
[1724770541971,0.81796558,2594.3,2593.0,0.3866]
[1724770541972,7.4415,2594.2,2593.0,0.3866]
[1724770542166,7.4415,2594.2,2592.9,7.83964116]
[1724770542167,0.09639628,2594.1,2592.9,7.83964116]
[1724770542610,0.09639628,2594.1,2592.9,7.4384]
[1724770542839,1.62112191,2594.1,2593.0,1.129515]
[1724770543319,1.62112191,2594.1,2593.0,4.129515]
[1724770543486,7.3662,2594.0,2593.0,4.129515]
[1724770543685,0.09639865,2593.9,2593.0,1.129515]
[1724770543890,0.09639865,2593.9,2593.1,0.07711892]
[1724770544108,7.3662,2594.0,2593.1,10.27101892]
[1724770544291,7.3662,2594.0,2593.2,3.85615]
[1724770544601,7.3662,2594.0,2593.3,3.07710873]
[1724770544803,11.22125,2594.0,2593.3,3.0]
[1724770545019,1.122125,2593.9,2592.7,6.85694]
[1724770545216,1.122125,2593.9,2592.8,3.85673]
[1724770545217,0.09640775,2593.8,2592.8,3.85673]
[1724770545415,0.95488103,2593.8,2592.9,4.14848998]
[1724770545625,0.09640372,2593.7,2592.9,4.14848998]
[1724770545803,0.09640372,2593.7,2592.9,8.00516998]
[1724770546211,7.3662,2594.0,2592.9,11.86174998]
[1724770546401,7.3662,2594.0,2593.0,3.85649]
[1724770546605,0.73662,2593.9,2593.1,3.0771167]
[1724770546803,0.09639588,2593.8,2593.2,0.55]
[1724770548741,7.3662,2594.0,2593.3,0.07711667]
[1724770549039,7.45,2594.2,2593.4,0.55]
[1724770549195,0.09638058,2594.1,2593.5,0.07710454]
[1724770549536,0.09638058,2594.1,2593.6,0.55]
[1724770549738,1.56254864,2594.1,2593.6,0.55]
[1724770550167,7.4016,2594.0,2593.6,0.55]
[1724770550845,0.09639061,2594.0,2593.6,0.55]
[1724770551041,0.09638858,2594.1,2593.4,3.62711087]
[1724770551252,7.45,2594.2,2593.5,1.11456109]
[1724770551417,7.45,2594.2,2593.6,0.62710471]
[1724770551863,7.45,2594.2,2593.8,3.85528]
[1724770552158,7.3922,2594.6,2593.9,4.48228547]
[1724770552346,7.3922,2594.6,2593.9,0.55]
[1724770552347,7.48856165,2594.6,2593.9,0.55]
[1724770552515,7.48856165,2594.6,2593.8,3.55]
[1724770552716,7.48856165,2594.6,2593.8,0.62709873]
[1724770552717,10.93241781,2594.6,2593.8,0.62709873]
[1724770553016,7.48856165,2594.6,2593.8,0.62709873]
[1724770553418,7.48856975,2594.6,2593.8,0.62709873]
[1724770553622,7.48856975,2594.6,2593.8,3.62709873]
[1724770555457,0.09636975,2594.6,2593.9,7.0993]
[1724770555758,0.09636975,2594.6,2594.0,0.62708927]
[1724770555968,0.09636975,2594.6,2594.0,0.55]
[1724770556131,0.09636975,2594.6,2593.7,3.0]
[1724770556331,7.416,2594.5,2593.7,3.0]
[1724770556535,0.09637356,2594.4,2593.8,0.07709884]
[1724770557883,0.09637356,2594.4,2593.9,0.55]
[1724770558348,7.45,2594.7,2593.9,0.55]
[1724770558349,0.096363,2594.6,2594.0,0.07709034]
[1724770558548,0.096363,2594.6,2594.1,0.55]
[1724770559477,7.45,2594.7,2594.1,0.55]
[1724770560130,7.45,2594.7,2594.2,0.07708194]
[1724770560331,7.45,2594.7,2594.3,0.55]
[1724770560579,7.45,2594.7,2594.3,0.62706416]
[1724770561133,0.09635216,2594.6,2594.3,0.55]
[1724770561335,7.69775216,2594.6,2594.3,0.55]
[1724770561589,7.69775216,2594.6,2594.0,0.07709364]
[1724770561590,9.11617522,2594.6,2594.0,0.07709364]
[1724770561874,7.6014,2594.6,2594.1,0.55]
[1724770563994,7.45,2594.7,2594.1,0.55]
[1724770564579,0.09636192,2594.6,2594.1,0.55]
[1724770564885,7.0965,2594.5,2594.0,0.55]
[1724770565042,0.09637123,2594.4,2594.0,0.55]
[1724770566182,7.19287122,2594.5,2594.0,0.55]
[1724770566388,7.0965,2594.5,2594.1,0.07709697]
[1724770566674,0.09636229,2594.4,2594.2,0.55]
[1724770566837,0.09636229,2594.4,2594.0,0.55]
[1724770566838,0.09636967,2594.7,2594.0,0.62709574]
[1724770567039,0.09636967,2594.7,2594.1,0.44822457]
[1724770567342,0.09636967,2594.7,2594.2,0.55]
[1724770568343,0.09636967,2594.7,2594.1,0.55]
[1724770568541,0.09636967,2594.7,2593.9,0.55]
[1724770568778,0.81472664,2594.7,2593.9,0.55]
[1724770569453,0.81472664,2594.7,2593.8,0.55]
[1724770569950,0.09636967,2594.7,2593.8,0.55]
[1724770570151,0.09636967,2594.7,2593.8,4.40532]
[1724770570348,0.09636967,2594.7,2593.9,3.0]
[1724770570679,0.09636967,2594.7,2594.0,0.55]
[1724770571436,0.09636967,2594.7,2593.9,0.62709138]
[1724770571640,0.09636967,2594.7,2593.9,1.69815738]
[1724770571840,0.09636967,2594.7,2593.9,5.55328738]
[1724770572040,0.09636967,2594.7,2594.0,3.0]
[1724770572344,0.09636967,2594.7,2594.1,0.55]
[1724770573550,0.09636967,2594.7,2594.1,0.58441537]
[1724770573873,0.09636967,2594.7,2594.1,4.44317664]
[1724770574054,0.09636967,2594.7,2594.1,12.02396603]
[1724770574280,0.0963626,2594.9,2594.1,12.02396603]
[1724770574505,14.8653,2595.1,2594.3,3.85448]
[1724770574788,7.45,2595.1,2594.4,7.48141021]
[1724770574996,7.45,2595.1,2594.4,3.62705021]
[1724770575141,7.45,2595.1,2594.4,0.62705021]
[1724770575494,7.45,2595.1,2594.4,1.10999489]
[1724770576490,0.09634745,2595.0,2594.4,1.10999489]
[1724770577184,7.54334745,2595.0,2594.4,0.55]
[1724770577390,7.447,2595.0,2594.5,0.07706349]
[1724770577691,7.447,2595.0,2594.6,0.55]
[1724770578542,7.447,2595.0,2594.4,0.55]
[1724770578747,7.447,2595.0,2594.5,0.07705302]
[1724770578983,7.45,2595.1,2594.6,0.55]
[1724770579973,0.09634527,2595.0,2594.6,0.55]
[1724770580177,7.0094,2594.9,2594.2,3.0]
[1724770580348,0.09636203,2594.8,2594.1,0.03441537]
[1724770583097,0.09636203,2594.8,2594.1,0.58441537]
[1724770584729,3.95025203,2594.8,2594.1,0.58441537]
[1724770584931,7.1199,2594.6,2594.1,0.03441537]
[1724770585098,0.09637743,2594.5,2594.1,0.03441537]
[1724770586185,11.07475,2594.4,2594.1,0.03441537]
[1724770586409,0.09637743,2594.5,2594.1,0.03441537]
[1724770586410,11.17129414,2594.3,2594.1,0.03441537]
[1724770586598,1.21351979,2594.2,2594.1,0.03441537]
[1724770586900,16.11161979,2594.2,2594.1,0.03441537]
[1724770587089,14.99449038,2594.2,2594.1,0.03441537]
[1724770587544,41.34924038,2594.2,2594.1,0.03441537]
[1724770587826,7.1886,2593.3,2592.2,7.6206]
[1724770588030,7.1886,2593.3,2591.8,7.6206]
[1724770588031,3.85648,2593.1,2591.8,7.6206]
[1724770588341,18.59623,2592.9,2591.8,7.6206]
[1724770588501,0.09644416,2592.8,2591.9,0.76206]
[1724770588832,0.09644416,2592.7,2591.9,0.76206]
[1724770588979,0.09644416,2592.7,2591.6,0.0771589]
[1724770589479,0.09644416,2592.7,2591.6,3.0771589]
[1724770591554,7.45,2592.9,2592.0,7.5796]
[1724770591850,7.45,2592.9,2592.1,4.38509565]
[1724770592368,7.45,2592.9,2592.2,3.85772]
[1724770592509,7.45,2592.9,2592.3,3.62713557]
[1724770593018,7.45,2592.9,2592.4,3.0]
[1724770593224,7.45,2592.9,2592.5,0.62713556]
[1724770593442,14.8319,2593.3,2592.5,0.07713556]
[1724770593764,0.09641945,2593.2,2592.6,0.55]
[1724770595825,0.09641945,2593.2,2592.4,0.62713553]
[1724770596021,0.09641943,2593.2,2592.4,0.93484908]
[1724770596460,0.09641943,2593.2,2592.5,7.1564]
[1724770596663,0.09641943,2593.2,2592.6,3.62713377]
[1724770596961,0.09641943,2593.2,2592.6,4.79897206]
[1724770597722,0.09641943,2593.2,2592.6,3.62713377]
[1724770597924,7.35751943,2593.2,2592.6,0.55]
[1724770598125,7.35751943,2593.2,2592.4,0.55]
[1724770598362,8.6695346,2593.2,2592.4,1.64152338]
[1724770599181,7.45,2593.3,2592.5,0.07714218]
[1724770599407,0.09641916,2593.2,2592.6,0.55]
[1724770599595,0.85106108,2593.2,2592.6,0.55]
[1724770599904,0.85106108,2593.2,2592.4,0.55]
[1724770602617,0.09641916,2593.2,2592.5,0.0771422]
[1724770602817,0.09641916,2593.2,2592.6,0.55]
[1724770604018,7.45,2593.3,2592.7,0.07713368]
[1724770604198,7.45,2593.3,2592.8,0.55]
[1724770604519,0.09641497,2593.2,2592.7,7.2977]
[1724770604820,0.09641497,2593.2,2592.8,0.55]
[1724770605419,0.09641586,2593.2,2592.8,0.55]
[1724770605746,7.45,2593.3,2592.8,0.55]